fUSD/lending_fUSD_20241127
["ID","MTS","AMOUNT","RATE_DAILY","PERIOD"]
[343576333,1732728202130,-1442.0,0.00038,120]
[343576334,1732728202165,-6000.0,0.00038,30]
[343576335,1732728202194,-11191.77431386,0.00038,120]
[343576336,1732728202224,-3370.03849256,0.00038,120]
[343576337,1732728222383,-123900.0,0.000384,120]
[343576338,1732728222415,-151.0,0.00038712,120]
[343576339,1732728222445,-151.0,0.00038767,120]
[343576340,1732728222476,-223.77545351,0.00039,120]
[343576341,1732728222508,-10000.0,0.00039,120]
[343576342,1732728222541,-2000.0,0.00039493,120]
[343576343,1732728222573,-13072.80030735,0.000395,120]
[343576344,1732728222602,-151.0,0.00039644,120]
[343576345,1732728222632,-1000.0,0.00039726,120]
[343576346,1732728222664,-1000.0,0.00039726,120]
[343576347,1732728222694,-1000.0,0.00039726,120]
[343576348,1732728222724,-1000.0,0.00039726,120]
[343576349,1732728222755,-1000.0,0.00039726,120]
[343576350,1732728222788,-1000.0,0.00039726,120]
[343576351,1732728222819,-1000.0,0.00039726,120]
[343576352,1732728222849,-1000.0,0.00039726,120]
[343576353,1732728222880,-1000.0,0.00039726,120]
[343576354,1732728222911,-1000.0,0.00039726,120]
[343576355,1732728222941,-1000.0,0.00039726,120]
[343576356,1732728222971,-1000.0,0.00039726,120]
[343576357,1732728223002,-1000.0,0.00039726,120]
[343576358,1732728223032,-1000.0,0.00039726,120]
[343576359,1732728223062,-1000.0,0.00039726,120]
[343576360,1732728223092,-1000.0,0.00039726,120]
[343576361,1732728223124,-1000.0,0.00039726,120]
[343576362,1732728223158,-1000.0,0.00039726,120]
[343576363,1732728223188,-1000.0,0.00039726,120]
[343576364,1732728223217,-1000.0,0.00039726,120]
[343576365,1732728223249,-1065.37694267,0.00039726,120]
[343576366,1732728223280,-397.75,0.0003982,120]
[343576367,1732728223521,-469.44,0.00039914,120]
[343576368,1732728223553,-1695.89849418,0.0003999,120]
[343576369,1732728223586,-200.0,0.0004,120]
[343576370,1732728223616,-450.0,0.0004,120]
[343576371,1732728223644,-811402.54501412,0.0004,120]
[343576372,1732728223676,-8000.0,0.0004,120]
[343576373,1732728223705,-15535.80266015,0.0004,120]
[343576374,1732728223737,-4000.02667885,0.0004,120]
[343576375,1732728223767,-226.5466119,0.0004,120]
[343576376,1732728223797,-5727.57687675,0.0004,120]
[343576377,1732728223828,-5045.0,0.0004,120]
[343576378,1732728223858,-2815.59921832,0.0004,120]
[343576379,1732728223891,-82405.63944943,0.0004,120]
[343576380,1732728223923,-1000.0,0.0004,120]
[343576381,1732728223952,-797.67727798,0.0004,120]
[343576382,1732728223982,-323.10573674,0.0004,120]
[343576383,1732728224011,-953.95776137,0.0004,120]
[343576384,1732728224041,-22034.96298152,0.0004,120]
[343576385,1732728224071,-19819.23648218,0.0004,120]
[343576386,1732728224101,-14888.16830259,0.0004,120]
[343576387,1732728224130,-11191.77431386,0.0004,120]
[343576388,1732728224162,-3370.03849256,0.0004,120]
[343576389,1732728224192,-6141.38314979,0.0004,120]
[343576390,1732728224220,-6142.51417265,0.0004,120]
[343576391,1732728224252,-3467.68,0.0004,120]
[343576392,1732728224284,-4299.75,0.0004,120]
[343576393,1732728224315,-3750.0,0.0004,120]
[343576394,1732728224346,-310.97,0.0004,120]
[343576395,1732728224379,-986.12,0.0004,120]
[343576396,1732728224413,-3750.0,0.0004,120]
[343576397,1732728224445,-1078.93,0.0004,120]
[343576398,1732728224476,-3750.0,0.0004,120]
[343576399,1732728224507,-5000.0,0.0004,120]
[343576400,1732728224538,-676.95,0.0004,120]
[343576401,1732728224569,-3750.0,0.0004,120]
[343576402,1732728234132,22000.0,0.0004,120]
[343576403,1732728238905,-500.0,0.00036602,60]
[343576404,1732728238939,-800.0,0.00036602,60]
[343576405,1732728238971,-800.0,0.0003715,60]
[343576406,1732728239003,-900.0,0.00037698,60]
[343576407,1732728239039,-500.0,0.00037698,60]
[343576408,1732728239075,-204.83,0.000382,31]
[343576409,1732728239109,-204.83,0.000382,31]
[343576410,1732728239142,-204.83,0.000382,31]
[343576411,1732728239176,-204.83,0.000382,31]
[343576412,1732728239209,-204.83,0.000382,31]
[343576413,1732728239243,-204.83,0.000382,31]
[343576414,1732728239276,-204.83,0.000382,31]
[343576415,1732728239308,-204.83,0.000382,31]
[343576416,1732728239342,-204.83,0.000382,31]
[343576417,1732728239376,-204.83,0.000382,31]
[343576418,1732728239408,-204.83,0.000382,31]
[343576419,1732728239442,-204.83,0.000382,31]
[343576420,1732728239476,-204.83,0.000382,31]
[343576421,1732728239509,-204.83,0.000382,31]
[343576422,1732728239540,-204.83,0.000382,31]
[343576423,1732728239574,-204.83,0.000382,31]
[343576424,1732728239611,-204.83,0.000382,31]
[343576425,1732728239643,-204.83,0.000382,31]
[343576426,1732728239676,-204.83,0.000382,31]
[343576427,1732728239708,-204.83,0.000382,31]
[343576428,1732728239741,-204.83,0.000382,31]
[343576429,1732728239773,-204.83,0.000382,31]
[343576430,1732728239805,-204.83,0.000382,31]
[343576431,1732728239837,-204.83,0.000382,31]
[343576432,1732728239869,-900.0,0.00038246,60]
[343576433,1732728239901,-1330.92,0.00038356,42]
[343576434,1732728239934,-2619.42,0.000384,30]
[343576435,1732728239964,-2500.0,0.0003863,30]
[343576436,1732728239995,-205.0,0.0003865,30]
[343576437,1732728240026,-1065.28,0.00038668,30]
[343576438,1732728240057,-1065.28,0.00038668,30]
[343576439,1732728240087,-1065.28,0.00038668,30]
[343576440,1732728240119,-1065.28,0.00038668,30]
[343576441,1732728240437,-900.0,0.00038794,60]
[343576442,1732728240469,-900.0,0.00038794,60]
[343576443,1732728240500,-34097.85678526,0.000388,60]
[343576444,1732728240531,-538.59,0.000388,30]
[343576445,1732728240561,-2500.0,0.00038904,30]
[343576446,1732728240593,-1065.28,0.00038941,30]
[343576447,1732728240623,-1065.28,0.00038941,30]
[343576448,1732728240654,-2000.0,0.00039,30]
[343576449,1732728240686,-3000.0,0.00039,87]
[343576450,1732728240715,-1800.0,0.00039,40]
[343576451,1732728240746,-2500.0,0.00039178,30]
[343576452,1732728240776,-1065.28,0.00039214,30]
[343576453,1732728240806,-1065.28,0.00039214,30]
[343576454,1732728240837,-900.0,0.00039342,60]
[343576455,1732728240868,-2500.0,0.00039452,30]
[343576456,1732728240898,-1065.28,0.00039488,30]
[343576457,1732728240930,-1065.28,0.00039488,30]
[343576458,1732728240961,-1009.66,0.0003955,32]
[343576459,1732728240993,-2500.0,0.00039726,30]
[343576460,1732728241023,-1330.92,0.00039726,47]
[343576461,1732728241055,-1065.28,0.00039761,30]
[343576462,1732728241085,-1065.28,0.00039761,30]
[343576463,1732728241117,-36852.258,0.000398,60]
[343576464,1732728241151,-204.83,0.000398,31]
[343576465,1732728241186,-204.83,0.000398,31]
[343576466,1732728241219,-204.83,0.000398,31]
[343576467,1732728241253,-204.83,0.000398,31]
[343576468,1732728241285,-204.83,0.000398,31]
[343576469,1732728241317,-204.83,0.000398,31]
[343576470,1732728241350,-204.83,0.000398,31]
[343576471,1732728241384,-204.83,0.000398,31]
[343576472,1732728241422,-204.83,0.000398,31]
[343576473,1732728241456,-204.83,0.000398,31]
[343576474,1732728241490,-204.83,0.000398,31]
[343576475,1732728241523,-204.83,0.000398,31]
[343576476,1732728241559,-204.83,0.000398,31]
[343576477,1732728241590,-204.83,0.000398,31]
[343576478,1732728241621,-204.83,0.000398,31]
[343576479,1732728241653,-204.83,0.000398,31]
[343576480,1732728241686,-900.0,0.0003989,60]
[343576481,1732728241716,-91932.06559977,0.0003999,30]
[343576482,1732728241746,-200074.67810557,0.0004,30]
[343576483,1732728241775,-820.0,0.0004,30]
[343576484,1732728241807,-2500.0,0.0004,30]
[343576485,1732728241836,-342.0,0.0004,30]
[343576486,1732728241865,-154.64160795,0.0004,30]
[343576487,1732728241894,-5000.0,0.0004,30]
[343576488,1732728241941,-2004.01,0.0004,60]
[343576489,1732728241973,-2000.0,0.0004,30]
[343576490,1732728242004,-33800.0,0.0004,30]
[343576491,1732728242035,-71436.0,0.0004,30]
[343576492,1732728242066,-10070.69693902,0.0004,60]
[343576493,1732728242098,-25143.63,0.0004,60]
[343576494,1732728242347,-477.77093984,0.0004,60]
[343576495,1732728242386,-11001.13615556,0.0004,30]
[343576496,1732728242417,-10000.0,0.0004,30]
[343576497,1732728242451,-6982.18586703,0.0004,30]
[343576498,1732728243491,10000.0,0.0004,120]
[343576871,1732728631941,-693.488336,8.178e-05,2]
[343576872,1732728631950,-306.459664,8.219e-05,2]
[343576873,1732728632243,-257.08045755,8.219e-05,2]
[343576874,1732728632252,-250.0,8.396e-05,2]
[343576875,1732728632264,-80.58832778,8.417e-05,2]
[343576876,1732728632275,-552.25077623,8.417e-05,2]
[343576877,1732728632301,-741.60089599,8.417e-05,2]
[343576878,1732728632312,-505.61635243,8.417e-05,2]
[343576879,1732728632321,-433.40939734,8.472e-05,2]
[343576880,1732728632349,-72.20695507,8.472e-05,2]
[343576882,1732728632358,-1500.0,8.472e-05,2]
[343576884,1732728632368,-4502.85,8.522e-05,2]
[343576886,1732728632377,-3731.35,8.528e-05,2]
[343576888,1732728632388,-1000.0,8.544e-05,2]
[343576890,1732728632398,-159.18,8.544e-05,2]
[343576892,1732728632408,-325.72,8.548e-05,2]
[343576894,1732728632417,-250.0,8.58e-05,2]
[343576896,1732728632426,-2000.0,8.606e-05,2]
[343576898,1732728632436,-500.0,8.667e-05,2]
[343576900,1732728632446,-250.0,8.696e-05,2]
[343576902,1732728632456,-364.0,8.696e-05,2]
[343576904,1732728632466,-150.0,8.699e-05,2]
[343576906,1732728632476,-500.0,8.7e-05,2]
[343576908,1732728632486,-711.64,8.7e-05,2]
[343576910,1732728632495,-15661.9464,8.7e-05,2]
[343576911,1732728632505,-6946.4407,8.7e-05,2]
[343576913,1732728632518,-200.0,8.726e-05,2]
[343576915,1732728632528,-171.06,8.751e-05,2]
[343576917,1732728632537,-2000.0,8.925e-05,2]
[343576919,1732728632547,-23900.0,8.939e-05,2]
[343576921,1732728632556,-163.09,8.987e-05,2]
[343576923,1732728632566,-1000.0,9e-05,2]
[343576925,1732728632575,-3348.76656388,9e-05,2]
[343576927,1732728632584,-300.0,9.028e-05,2]
[343576928,1732728632594,-434.45,9.041e-05,2]
[343576930,1732728632603,-969.03,9.178e-05,2]
[343576932,1732728632614,-971.82,9.178e-05,2]
[343576934,1732728632624,-971.82,9.178e-05,2]
[343576935,1732728632633,-971.82,9.178e-05,2]
[343576937,1732728632643,-971.82,9.178e-05,2]
[343576939,1732728632654,-150.0,9.178e-05,2]
[343576941,1732728632663,-971.82,9.178e-05,2]
[343576943,1732728632674,-434.46,9.178e-05,2]
[343576945,1732728632684,-971.82,9.178e-05,2]
[343576947,1732728632694,-551.65,9.178e-05,2]
[343576949,1732728632703,-971.82,9.178e-05,2]
[343576950,1732728632713,-2000.0,9.243e-05,2]
[343576952,1732728632723,-171.06,9.473e-05,2]
[343576954,1732728632734,-2000.0,9.562e-05,2]
[343576956,1732728632744,-255.0,9.569e-05,2]
[343576958,1732728632753,-400.0,9.589e-05,2]
[343576960,1732728632770,-1000.0,9.612e-05,2]
[343576961,1732728632779,-159.18,9.612e-05,2]
[343576963,1732728632789,-325.72,9.617e-05,2]
[343576965,1732728632798,-1250.0,9.641e-05,2]
[343576967,1732728632808,-1250.0,9.641e-05,2]
[343576969,1732728632817,-2126.73,9.67e-05,2]
[343576971,1732728632826,-256.79,9.67e-05,2]
[343576973,1732728632836,-150.99,9.67e-05,2]
[343576974,1732728632845,-150.0,9.737e-05,2]
[343576976,1732728632854,-150.0,9.754e-05,2]
[343576978,1732728632863,-150.0,9.773e-05,2]
[343576980,1732728632874,-150.0,9.774e-05,2]
[343576982,1732728632883,-150.0,9.775e-05,2]
[343576984,1732728632893,-150.0,9.775e-05,2]
[343576985,1732728632902,-150.0,9.783e-05,2]
[343576987,1732728632912,-150.0,9.796e-05,2]
[343576988,1732728632922,-431.2682,9.8e-05,2]
[343576989,1732728632932,-2500.0,9.8e-05,2]
[343576990,1732728632942,-150.0,9.805e-05,2]
[343576991,1732728632951,-155.52,9.843e-05,2]
[343576992,1732728632960,-500.0,9.863e-05,2]
[343576993,1732728632969,-500.0,9.863e-05,2]
[343576994,1732728632978,-266.97394471,9.863e-05,2]
[343576995,1732728632987,-500.0,9.863e-05,2]
[343576996,1732728632997,-500.0,9.863e-05,2]
[343576997,1732728633006,-500.0,9.863e-05,2]
[343576998,1732728633021,-500.0,9.863e-05,2]
[343576999,1732728633031,-500.0,9.863e-05,2]
[343577000,1732728633041,-500.0,9.863e-05,2]
[343577002,1732728633050,-501.79679247,9.863e-05,2]
[343577003,1732728633060,-500.0,9.863e-05,2]
[343577005,1732728633069,-500.0,9.863e-05,2]
[343577007,1732728633079,-500.0,9.863e-05,2]
[343577009,1732728633090,-448.9,9.863e-05,2]
[343577011,1732728633099,-500.0,9.863e-05,2]
[343577013,1732728633109,-500.0,9.863e-05,2]
[343577015,1732728633118,-500.0,9.863e-05,2]
[343577017,1732728633128,-500.0,9.863e-05,2]
[343577019,1732728633138,-263.62,9.863e-05,2]
[343577021,1732728633148,-500.0,9.863e-05,2]
[343577023,1732728633158,-500.0,9.863e-05,2]
[343577025,1732728633168,-500.0,9.863e-05,2]
[343577027,1732728633177,-500.0,9.863e-05,2]
[343577029,1732728633187,-500.0,9.863e-05,2]
[343577031,1732728633196,-500.0,9.863e-05,2]
[343577033,1732728633205,-500.0,9.863e-05,2]
[343577035,1732728633215,-500.0,9.863e-05,2]
[343577037,1732728633225,-500.0,9.863e-05,2]
[343577039,1732728633235,-500.0,9.863e-05,2]
[343577040,1732728633244,-500.0,9.863e-05,2]
[343577042,1732728633254,-500.0,9.863e-05,2]
[343577045,1732728633267,-500.0,9.863e-05,2]
[343577046,1732728633278,-500.0,9.863e-05,2]
[343577048,1732728633287,-542.73,9.863e-05,2]
[343577051,1732728633297,-2000.0,9.88e-05,2]
[343577053,1732728633311,-1000.0,9.89e-05,2]
[343577055,1732728633321,-500.0,9.898e-05,2]
[343577057,1732728633332,-500.0,9.898e-05,2]
[343577059,1732728633342,-537.2,9.898e-05,2]
[343577061,1732728633352,-500.0,9.898e-05,2]
[343577063,1732728633362,-500.0,9.898e-05,2]
[343577065,1732728633372,-663.8995,9.899e-05,2]
[343577067,1732728633383,-150.0,9.899e-05,2]
[343577069,1732728633394,-714.2809,9.9e-05,2]
[343577071,1732728633404,-2500.0,9.9e-05,2]
[343577073,1732728633414,-51783.7519,9.9e-05,2]
[343577075,1732728633424,-1000.0,9.9e-05,2]
[343577077,1732728633434,-150.0,9.917e-05,2]
[343577079,1732728633444,-150.0,9.922e-05,2]
[343577081,1732728633454,-150.0,9.925e-05,2]
[343577083,1732728633463,-1792.138,9.926e-05,2]
[343577085,1732728633473,-177.719,9.926e-05,2]
[343577087,1732728633482,-150.0,9.946e-05,2]
[343577089,1732728633491,-150.0,9.965e-05,2]
[343577091,1732728633501,-501.49364441,9.973e-05,2]
[343577093,1732728633512,-500.0,9.973e-05,2]
[343577095,1732728633522,-500.0,9.973e-05,2]
[343577097,1732728633531,-2702.90052877,9.976e-05,2]
[343577099,1732728633541,-2702.90052877,9.978e-05,2]
[343577101,1732728633550,-6105.68832856,9.98e-05,2]
[343577103,1732728633560,-150.0,9.981e-05,2]
[343577105,1732728633570,-2702.90052877,9.986e-05,2]
[343577107,1732728633579,-2702.90052877,9.989e-05,2]
[343577109,1732728633589,-2702.90052877,9.99e-05,2]
[343577111,1732728633598,-395.2389905,9.99e-05,2]
[343577113,1732728633607,-395.23899049,9.99e-05,2]
[343577115,1732728633616,-395.23899049,9.99e-05,2]
[343577117,1732728633625,-395.23899049,9.99e-05,2]
[343577118,1732728633634,-395.23899049,9.99e-05,2]
[343577120,1732728633644,-395.23899049,9.99e-05,2]
[343577122,1732728633654,-395.23899049,9.99e-05,2]
[343577125,1732728633663,-395.23899049,9.99e-05,2]
[343577126,1732728633673,-395.23899049,9.99e-05,2]
[343577129,1732728633683,-298.02890073,9.994e-05,2]
[343577130,1732728633692,-2702.90052877,9.996e-05,2]
[343577133,1732728633702,-150.0,9.996e-05,2]
[343577135,1732728633712,-500.0,9.997e-05,2]
[343577137,1732728633722,-546.57,9.997e-05,2]
[343577138,1732728633731,-150.0,9.997e-05,2]
[343577141,1732728633742,-167.71,9.998e-05,2]
[343577142,1732728633751,-500.0,9.998e-05,2]
[343577144,1732728633763,-500.0,9.998e-05,2]
[343577146,1732728633772,-500.0,9.998e-05,2]
[343577149,1732728633782,-609.66,9.998e-05,2]
[343577150,1732728633792,-500.0,9.998e-05,2]
[343577152,1732728633802,-500.0,9.998e-05,2]
[343577154,1732728633811,-574.51,9.998e-05,2]
[343577156,1732728633821,-500.0,9.998e-05,2]
[343577158,1732728633831,-529.01,9.998e-05,2]
[343577160,1732728633840,-878.86641245,9.999e-05,2]
[343577162,1732728633850,-500.0,9.999e-05,2]
[343577164,1732728633859,-500.0,9.999e-05,2]
[343577166,1732728633868,-500.0,9.999e-05,2]
[343577168,1732728633876,-500.0,9.999e-05,2]
[343577170,1732728633886,-500.0,9.999e-05,2]
[343577172,1732728633896,-500.0,9.999e-05,2]
[343577174,1732728633905,-500.0,9.999e-05,2]
[343577176,1732728633915,-262.15,9.999e-05,2]
[343577178,1732728633924,-500.0,9.999e-05,2]
[343577180,1732728633934,-230.81,9.999e-05,2]
[343577182,1732728633943,-500.0,9.999e-05,2]
[343577184,1732728633952,-507.23602085,9.999e-05,2]
[343577186,1732728633962,-545.46,9.999e-05,2]
[343577188,1732728633971,-500.0,9.999e-05,2]
[343577190,1732728633980,-500.0,9.999e-05,2]
[343577192,1732728633989,-571.13,9.999e-05,2]
[343577194,1732728633999,-500.0,9.999e-05,2]
[343577196,1732728634008,-500.0,9.999e-05,2]
[343577198,1732728634020,-500.0,9.999e-05,2]
[343577200,1732728634030,-500.0,9.999e-05,2]
[343577202,1732728634039,-500.0,9.999e-05,2]
[343577204,1732728634049,-345.34,9.999e-05,2]
[343577206,1732728634058,-500.0,9.999e-05,2]
[343577208,1732728634068,-500.0,9.999e-05,2]
[343577210,1732728634077,-362.28186676,9.999e-05,2]
[343577212,1732728634086,-500.0,9.999e-05,2]
[343577214,1732728634095,-500.0,9.999e-05,2]
[343577216,1732728634104,-285.48146888,9.999e-05,2]
[343577218,1732728634114,-500.0,9.999e-05,2]
[343577220,1732728634123,-500.0,9.999e-05,2]
[343577222,1732728634132,-500.0,9.999e-05,2]
[343577224,1732728634142,-187.57,9.999e-05,2]
[343577227,1732728634151,-500.0,9.999e-05,2]
[343577228,1732728634161,-500.0,9.999e-05,2]
[343577230,1732728634170,-500.0,9.999e-05,2]
[343577233,1732728634180,-500.0,9.999e-05,2]
[343577235,1732728634190,-500.0,9.999e-05,2]
[343577236,1732728634199,-500.0,9.999e-05,2]
[343577239,1732728634209,-500.0,9.999e-05,2]
[343577241,1732728634218,-500.0,9.999e-05,2]
[343577243,1732728634228,-500.0,9.999e-05,2]
[343577245,1732728634237,-500.0,9.999e-05,2]
[343577247,1732728634247,-500.0,9.999e-05,2]
[343577249,1732728634257,-500.0,9.999e-05,2]
[343577251,1732728634270,-337.94,9.999e-05,2]
[343577253,1732728634279,-500.0,9.999e-05,2]
[343577255,1732728634289,-500.0,9.999e-05,2]
[343577257,1732728634299,-615.28,9.999e-05,2]
[343577259,1732728634311,-500.0,9.999e-05,2]
[343577260,1732728634320,-579.74,9.999e-05,2]
[343577263,1732728634330,-500.0,9.999e-05,2]
[343577264,1732728634339,-500.0,9.999e-05,2]
[343577267,1732728634350,-500.0,9.999e-05,2]
[343577268,1732728634360,-500.0,9.999e-05,2]
[343577271,1732728634370,-500.0,9.999e-05,2]
[343577273,1732728634380,-500.0,9.999e-05,2]
[343577275,1732728634391,-500.0,9.999e-05,2]
[343577277,1732728634401,-500.0,9.999e-05,2]
[343577279,1732728634412,-469.25,9.999e-05,2]
[343577281,1732728634421,-500.0,9.999e-05,2]
[343577283,1732728634431,-500.0,9.999e-05,2]
[343577285,1732728634440,-500.0,9.999e-05,2]
[343577287,1732728634450,-500.0,9.999e-05,2]
[343577289,1732728634459,-500.0,9.999e-05,2]
[343577290,1732728634469,-500.0,9.999e-05,2]
[343577291,1732728634479,-500.0,9.999e-05,2]
[343577292,1732728634488,-500.0,9.999e-05,2]
[343577293,1732728634499,-500.0,9.999e-05,2]
[343577294,1732728634508,-500.0,9.999e-05,2]
[343577295,1732728634520,-500.0,9.999e-05,2]
[343577296,1732728634529,-500.0,9.999e-05,2]
[343577297,1732728634538,-500.0,9.999e-05,2]
[343577298,1732728634548,-500.0,9.999e-05,2]
[343577299,1732728634558,-522.05,9.999e-05,2]
[343577300,1732728634568,-500.0,9.999e-05,2]
[343577301,1732728634577,-500.0,9.999e-05,2]
[343577302,1732728634587,-500.0,9.999e-05,2]
[343577303,1732728634596,-492.01,9.999e-05,2]
[343577304,1732728634606,-547.56317971,9.999e-05,2]
[343577305,1732728634615,-577.0,9.999e-05,2]
[343577306,1732728634625,-500.0,9.999e-05,2]
[343577307,1732728634634,-500.0,9.999e-05,2]
[343577308,1732728634643,-545.54,9.999e-05,2]
[343577309,1732728634652,-311.96,9.999e-05,2]
[343577310,1732728634662,-500.0,9.999e-05,2]
[343577311,1732728634671,-500.0,9.999e-05,2]
[343577312,1732728634680,-543.46621554,9.999e-05,2]
[343577313,1732728634689,-545.02,9.999e-05,2]
[343577314,1732728634699,-500.0,9.999e-05,2]
[343577315,1732728634708,-306.24,9.999e-05,2]
[343577316,1732728634717,-500.0,9.999e-05,2]
[343577317,1732728634727,-500.0,9.999e-05,2]
[343577318,1732728634736,-211.37023313,9.999e-05,2]
[343577319,1732728634745,-500.0,9.999e-05,2]
[343577320,1732728634757,-500.0,9.999e-05,2]
[343577321,1732728634768,-231.68,9.999e-05,2]
[343577322,1732728634777,-500.0,9.999e-05,2]
[343577323,1732728634786,-251.48183242,9.999e-05,2]
[343577324,1732728634796,-580.91,9.999e-05,2]
[343577325,1732728634806,-508.8,9.999e-05,2]
[343577326,1732728634817,-500.0,9.999e-05,2]
[343577327,1732728634827,-500.0,9.999e-05,2]
[343577328,1732728634837,-500.0,9.999e-05,2]
[343577329,1732728634847,-500.0,9.999e-05,2]
[343577330,1732728634857,-567.58,9.999e-05,2]
[343577331,1732728634867,-537.34,9.999e-05,2]
[343577332,1732728634876,-500.0,9.999e-05,2]
[343577333,1732728634886,-500.0,9.999e-05,2]
[343577334,1732728634896,-500.0,9.999e-05,2]
[343577335,1732728634906,-500.0,9.999e-05,2]
[343577336,1732728634915,-500.0,9.999e-05,2]
[343577337,1732728634926,-360.7,9.999e-05,2]
[343577338,1732728634935,-500.0,9.999e-05,2]
[343577339,1732728634946,-500.0,9.999e-05,2]
[343577340,1732728634956,-500.0,9.999e-05,2]
[343577341,1732728634966,-234.41,9.999e-05,2]
[343577342,1732728634976,-500.0,9.999e-05,2]
[343577343,1732728634986,-500.0,9.999e-05,2]
[343577344,1732728634996,-500.0,9.999e-05,2]
[343577345,1732728635006,-500.0,9.999e-05,2]
[343577346,1732728635019,-408.07,9.999e-05,2]
[343577347,1732728635030,-500.0,9.999e-05,2]
[343577348,1732728635039,-500.0,9.999e-05,2]
[343577349,1732728635048,-500.0,9.999e-05,2]
[343577350,1732728635057,-500.0,9.999e-05,2]
[343577351,1732728635067,-2000.0,9.999e-05,2]
[343577352,1732728635076,-500.0,9.999e-05,2]
[343577353,1732728635085,-500.0,9.999e-05,2]
[343577354,1732728635094,-500.0,9.999e-05,2]
[343577355,1732728635103,-500.0,9.999e-05,2]
[343577356,1732728635112,-500.0,9.999e-05,2]
[343577357,1732728635121,-500.0,9.999e-05,2]
[343577358,1732728635130,-286.36,9.999e-05,2]
[343577359,1732728635139,-560.5,9.999e-05,2]
[343577360,1732728635148,-500.0,9.999e-05,2]
[343577361,1732728635157,-500.0,9.999e-05,2]
[343577362,1732728635166,-500.0,9.999e-05,2]
[343577363,1732728635176,-500.0,9.999e-05,2]
[343577364,1732728635185,-223.24,9.999e-05,2]
[343577365,1732728635194,-500.0,9.999e-05,2]
[343577366,1732728635204,-500.0,9.999e-05,2]
[343577367,1732728635213,-500.0,9.999e-05,2]
[343577368,1732728635222,-607.91,9.999e-05,2]
[343577369,1732728635232,-500.0,9.999e-05,2]
[343577370,1732728635241,-500.0,9.999e-05,2]
[343577371,1732728635250,-500.0,9.999e-05,2]
[343577372,1732728635259,-500.0,9.999e-05,2]
[343577373,1732728635271,-288.19,9.999e-05,2]
[343577374,1732728635281,-500.0,9.999e-05,2]
[343577375,1732728635290,-500.0,9.999e-05,2]
[343577376,1732728635300,-500.0,9.999e-05,2]
[343577377,1732728635314,-500.0,9.999e-05,2]
[343577378,1732728635324,-500.0,9.999e-05,2]
[343577379,1732728635333,-500.0,9.999e-05,2]
[343577380,1732728635342,-500.0,9.999e-05,2]
[343577381,1732728635352,-500.0,9.999e-05,2]
[343577382,1732728635361,-500.0,9.999e-05,2]
[343577383,1732728635370,-500.0,9.999e-05,2]
[343577384,1732728635379,-500.0,9.999e-05,2]
[343577385,1732728635391,-500.0,9.999e-05,2]
[343577386,1732728635401,-500.0,9.999e-05,2]
[343577387,1732728635411,-500.0,9.999e-05,2]
[343577388,1732728635421,-594.66,9.999e-05,2]
[343577389,1732728635430,-500.0,9.999e-05,2]
[343577390,1732728635440,-500.0,9.999e-05,2]
[343577391,1732728635449,-541.66,9.999e-05,2]
[343577392,1732728635459,-500.0,9.999e-05,2]
[343577393,1732728635468,-552.48,9.999e-05,2]
[343577394,1732728635478,-500.0,9.999e-05,2]
[343577395,1732728635488,-500.0,9.999e-05,2]
[343577396,1732728635497,-500.0,9.999e-05,2]
[343577397,1732728635506,-500.0,9.999e-05,2]
[343577398,1732728635517,-500.0,9.999e-05,2]